Cogmind - Beta 9.6 @@@ ROGUE MODE // 2020.08.18 @ 07:25:08 Player: Sudoku Result: Destroyed by D-53 Grenadier with Mini Grenade Launcher Performance ------------- Evolutions (0) 0 Regions Visited (4) 800 Robots Destroyed (14) 70 Value Destroyed (212) 212 Prototype IDs (0) 0 Alien Tech Used (0) 0 Bonus (0) 0 TOTAL SCORE: 1082 Bonus ------- None Cogmind --------- Core Integrity 0/250 Matter 280/300 Energy 67/100 System Corruption 0% Temperature Cool (28) Movement Core (550) Ox10 Location -9/Mines Parts ------- > --- POWER (1) -------- (None) > --- PROPULSION (2) --- (None) > --- UTILITY (2) ------ High-capacity Storage Unit > --- WEAPON (2) ------- (None) > --- INVENTORY (12) --- Ion Engine Light Ion Engine Flight Unit Heat Sink Large Battery (300) Small Matter Pod (50) Transport Network Coupler Improved Targeting Computer ECM Suite ECM Suite Peak State ------------ > --- POWER ------------ Light Nuclear Core > --- PROPULSION ------- Aluminum Leg Aluminum Leg > --- UTILITY ---------- Improved Heat Sink High-capacity Storage Unit > --- WEAPON ----------- Beam Rifle Beamcaster > --- INVENTORY -------- Ion Engine Ion Engine Light Ion Engine Flight Unit Heat Sink Large Battery Small Matter Pod Transport Network Coupler ECM Suite ECM Suite Spread Laser Grenade Launcher [Rating: 17] Favorites ----------- Power Light Nuclear Core Engine Ion Engine Power Core Light Nuclear Core Propulsion Aluminum Leg Leg Aluminum Leg Utility High-capacity Storage Unit Device Tractor Beam Storage High-capacity Storage Unit Weapon EM Pulse Gun Energy Gun EM Pulse Gun Ballistic Gun Assault Rifle Launcher Grenade Launcher Build | -11 -10 -10 -10 -9 ------- Run | Scr Mat Min Exi Min Slots Evolved . | . . . . . Power . | . . . . . Propulsion . | . . . . . Utility . | . . . . . Weapon . | . . . . . Parts Attached 21 | 7 3 4 . 7 Power 2 | 1 1 . . . Engine 1 | 1 . . . . Core 1 | . 1 . . . Reactor . | . . . . . Propulsion 4 | 2 . 2 . . Treads . | . . . . . Leg 4 | 2 . 2 . . Wheel . | . . . . . Hover . | . . . . . Flight . | . . . . . Utility 6 | 2 2 . . 2 Device 3 | 1 . . . 2 Storage 3 | 1 2 . . . Processor . | . . . . . Hackware . | . . . . . Protection . | . . . . . Artifact . | . . . . . Weapon 9 | 2 . 2 . 5 Energy Gun 6 | . . 2 . 4 Energy Cannon . | . . . . . Ballistic Gun 2 | 2 . . . . Ballistic Cannon . | . . . . . Launcher 1 | . . . . 1 Special Weapon . | . . . . . Impact Weapon . | . . . . . Slashing Weapon . | . . . . . Piercing Weapon . | . . . . . Special Melee Weapon . | . . . . . Unidentified Prototypes . | . . . . . Parts Lost 10 | . . 1 . 9 Power 1 | . . . . 1 Propulsion 2 | . . . . 2 Utility 1 | . . . . 1 Weapon 6 | . . 1 . 5 Highest Loss Streak 8 | . . 1 . 8 Average Slot Usage (%) 99 | . 100 100 100 94 Core 13 | . 7 14 14 13 Leg 27 | . 28 28 28 26 Device 1 | . 7 . . 5 Storage 26 | . 20 28 28 22 Energy Gun 23 | . . 24 28 26 Ballistic Gun 4 | . 28 3 . . Naked Turns . | . . . . . Heaviest Build 73 | 14 73 73 73 73 Greatest Support 20 | 20 20 20 20 20 Greatest Overweight (x) 14 | 1 3 3 3 14 Average Overweight (x) 2 | . 2 3 3 2 Largest Inventory Capacity 20 | 6 20 20 20 20 Average Capacity 18 | 5 15 20 20 16 Most Carried 20 | 6 20 20 20 20 Average Carried 17 | 4 13 19 20 16 Final Capacity 20 | 6 20 20 20 12 Final Carried 20 | 6 20 20 20 10 Class Distribution -------------------- 79% | Hauler-Mutant 14% | Mutant 6% | Scavenger-Mutant Dominant Class ---------------- Mutant | -10/Materials Hauler-Mutant | -10/Mines Hauler-Mutant | -10/Exiles Hauler-Mutant | -9/Mines Resources | -11 -10 -10 -10 -9 ----------- Run | Scr Mat Min Exi Min Matter Collected 685 | 337 200 98 . 50 Remotely 207 | 17 190 . . . Salvage Created 595 | 141 337 117 . . Parts 28 | 6 13 9 . . Haulers Intercepted 1 | . 1 . . . Recyclers Shooed 1 | . 1 . . . Parts Field Recycled . | . . . . . Retrieved Matter . | . . . . . Parts Self-Destructed . | . . . . . Prevented . | . . . . . Kills | -11 -10 -10 -10 -9 ------- Run | Scr Mat Min Exi Min Combat Hostiles Destroyed 6 | . 1 5 . . Guns 3 | . 1 2 . . AOE 3 | . . 3 . . Classes Destroyed 6 | 2 3 1 . . Worker 2 | 2 . . . . Hauler 1 | . 1 . . . Recycler 4 | 1 3 . . . Watcher 1 | . 1 . . . Swarmer 3 | . . 3 . . Grunt 3 | . 1 2 . . Best Kill Streak 3 | 2 2 3 . . Combat Bots Only 3 | . 1 3 . . Max Kills in Single Turn 3 | 1 1 3 . . Gunslinging . | . . . . . Exploded 3 | . . 3 . . Melee . | . . . . . Uniques/NPCs Destroyed . | . . . . . Combat | -11 -10 -10 -10 -9 -------- Run | Scr Mat Min Exi Min Damage Taken 1169 | . 161 218 . 790 Core 286 | . 28 6 . 252 Absorbed by Shields . | . . . . . Core Remaining (%) 100 | 100 . . . . Volleys Fired 51 | 10 23 11 . 7 Largest 2 | 2 2 2 . 2 Hottest 80 | 40 40 80 . 80 Shots Fired 99 | 20 46 22 . 11 Gun 98 | 20 46 22 . 10 Cannon . | . . . . . Launcher 1 | . . . . 1 Special . | . . . . . Kinetic 85 | 20 46 19 . . Thermal 2 | . . . . 2 Explosive 1 | . . . . 1 Electromagnetic 11 | . . 3 . 8 Robot Hit Streak 9 | 5 9 6 . 4 Robot Miss Streak 3 | 3 2 2 . 2 Penetration Max . | . . . . . Secondary Targets 1 | . 1 . . . Max Gunslinging Chain 1 | . 1 . . . Shots Hit Robots 64 | 10 31 15 . 8 Core Hits 30 | 4 13 8 . 5 Critical Hits . | . . . . . Critical Kills . | . . . . . Critical Parts Destroyed . | . . . . . Melee Attacks . | . . . . . Impact . | . . . . . Slashing . | . . . . . Piercing . | . . . . . Sneak Attacks . | . . . . . Combat Hostiles . | . . . . . Follow-up Attacks . | . . . . . Damage Inflicted 956 | 129 433 307 . 87 Guns 845 | 129 433 212 . 71 Cannons . | . . . . . Explosions 111 | . . 95 . 16 Melee . | . . . . . Ramming . | . . . . . Kinetic 764 | 129 433 202 . . Thermal 113 | . . 95 . 18 Explosive 16 | . . . . 16 Electromagnetic 63 | . . 10 . 53 Impact . | . . . . . Slashing . | . . . . . Piercing . | . . . . . Highest Corruption . | . . . . . Average Corruption . | . . . . . Corruption Purged . | . . . . . Overload Shots . | . . . . . Overflow Damage 1 | . . . . 1 Projectiles . | . . . . . Explosions 1 | . . . . 1 Melee . | . . . . . Knockbacks . | . . . . . Impact . | . . . . . Kinetic . | . . . . . Secondary . | . . . . . Self-Inflicted Damage 18 | . . 18 . . Shots 1 | . . 1 . . Rammed . | . . . . . Targets Rammed . | . . . . . Kicked . | . . . . . Crushed . | . . . . . Highest Temperature 84 | . 4 36 . 84 Average Temperature 23 | . 2 7 . 46 Received Heat Transfer 234 | . 93 90 . 51 Siege Activations . | . . . . . Robots Corrupted . | . . . . . Combat Hostiles . | . . . . . Parts Fried . | . . . . . Impact Corruptions . | . . . . . Robots Melted . | . . . . . Combat Hostiles . | . . . . . Parts Melted . | . . . . . Heat Transferred 175 | . . 150 . 25 Parts Sabotaged . | . . . . . Parts Stolen . | . . . . . Parts Stripped . | . . . . . Power Chain Reactions 1 | . . 1 . . Missiles Intercepted . | . . . . . Alert | -11 -10 -10 -10 -9 ------- Run | Scr Mat Min Exi Min Peak Influence 143 | 15 86 143 . . Average Influence 43 | 5 62 73 . . Maximum Alert Level . | . . . . . Low Security (%) 100 | 100 100 100 . 100 Level 1 . | . . . . . Level 2 . | . . . . . Level 3 . | . . . . . Level 4 . | . . . . . Level 5 . | . . . . . High Security . | . . . . . Max Security . | . . . . . Squads Dispatched . | . . . . . Investigation . | . . . . . Extermination . | . . . . . Reinforcement . | . . . . . Assault . | . . . . . Garrison . | . . . . . Intercept . | . . . . . Construction Impeded . | . . . . . Haulers Reinforced . | . . . . . Stealth | -11 -10 -10 -10 -9 --------- Run | Scr Mat Min Exi Min Distress Signals . | . . . . . Communications Jammed . | . . . . . Distress Signals . | . . . . . Times Spotted 30 | . 4 6 . 20 Peak Tracking Total 12 | . 2 3 . 12 Tactical Retreats 2 | . 1 . . 1 Traps | -11 -10 -10 -10 -9 ------- Run | Scr Mat Min Exi Min Traps Triggered . | . . . . . Indirectly . | . . . . . Trap Hack Attempts . | . . . . . Triggered . | . . . . . Disarmed . | . . . . . Reprogrammed . | . . . . . Reused . | . . . . . Traps Extracted . | . . . . . Installed . | . . . . . Triggered . | . . . . . Machines | -11 -10 -10 -10 -9 ---------- Run | Scr Mat Min Exi Min Machines Disabled 1 | . 1 . . . Max in Single Turn 1 | . 1 . . . Machines Sabotaged . | . . . . . Garrisons Compromised . | . . . . . Overloaded Fab Kills . | . . . . . Fab Network Shutdowns . | . . . . . Hacking | -11 -10 -10 -10 -9 --------- Run | Scr Mat Min Exi Min Machines Accessed 1 | . 1 . . . Terminals . | . . . . . Fabricators . | . . . . . Repair Stations 1 | . 1 . . . Recycling Units . | . . . . . Scanalyzers . | . . . . . Garrison Access . | . . . . . Total Hacks 1 | . 1 . . . Successful 1 | . 1 . . . Failed . | . . . . . Catastrophic . | . . . . . Database Lockouts . | . . . . . Manual 2 | . 1 . 1 . Terminals . | . . . . . Fabricators . | . . . . . Repair Stations 1 | . 1 . . . Recycling Units . | . . . . . Scanalyzers . | . . . . . Garrison Access . | . . . . . Terminal Hacks . | . . . . . Fabricator Hacks . | . . . . . Repair Station Hacks . | . . . . . Recycling Unit Hacks . | . . . . . Scanalyzer . | . . . . . Garrison Access Hacks . | . . . . . Unauthorized Hacks 1 | . 1 . . . Terminals . | . . . . . Fabricators . | . . . . . Repair Stations 1 | . 1 . . . Mechanics 1 | . 1 . . . Recycling Units . | . . . . . Scanalyzers . | . . . . . Garrison Access . | . . . . . Data Cores Recovered . | . . . . . Used . | . . . . . Hacking Detections 1 | . 1 . . . Full Trace Events . | . . . . . Feedback Events . | . . . . . Feedback Blocked . | . . . . . Robot Schematics Acquired . | . . . . . Robots Built . | . . . . . Matter . | . . . . . Time . | . . . . . Total Robot Build Rating . | . . . . . Part Schematics Acquired . | . . . . . Parts Built . | . . . . . Matter . | . . . . . Time . | . . . . . Total Part Build Rating . | . . . . . Parts Repaired . | . . . . . Time . | . . . . . Parts Recycled . | . . . . . Recycled Matter . | . . . . . Retrieved Matter . | . . . . . Retrieved Components . | . . . . . Parts Scanalyzed . | . . . . . Part Schematics Acquired . | . . . . . Parts Damaged . | . . . . . Bothacking | -11 -10 -10 -10 -9 ------------ Run | Scr Mat Min Exi Min Used RIF Installer . | . . . . . Robots Hacked . | . . . . . Non-combat . | . . . . . Combat . | . . . . . Robot Hacks Applied . | . . . . . Relay Couplers Released . | . . . . . Robots Rewired . | . . . . . Allies Hacked . | . . . . . Hacks Repelled . | . . . . . Allies | -11 -10 -10 -10 -9 -------- Run | Scr Mat Min Exi Min Total Allies . | . . . . . Largest Group . | . . . . . Highest-Rated Group . | . . . . . Highest-Rated Ally . | . . . . . Total Orders . | . . . . . Ally Attacks . | . . . . . Total Damage . | . . . . . Kills . | . . . . . Allies Corrupted . | . . . . . Allies Melted 1 | . . . . 1 Intel | -11 -10 -10 -10 -9 ------- Run | Scr Mat Min Exi Min Robot Analysis Total . | . . . . . Derelict Logs Recovered 2 | . . 2 . . Drone Launches . | . . . . . Drone Recoveries . | . . . . . Exploration | -11 -10 -10 -10 -9 ------------- Run | Scr Mat Min Exi Min Turns Passed 2923 | 180 377 594 1357 415 Spaces Moved 1356 | 109 149 263 647 188 Core 7 | 4 . . . 3 Treads . | . . . . . Legs 1349 | 105 149 263 647 185 Wheels . | . . . . . Hover . | . . . . . Flight . | . . . . . Fastest Speed 50 | 50 120 210 210 180 Average Speed 199 | 117 188 210 210 204 Slowest Speed 750 | 150 210 210 210 750 Overloaded Moves . | . . . . . Propulsion Burnouts . | . . . . . Robots Hopped . | . . . . . Cave-ins Triggered . | . . . . . Exploration Rate (%) 47 | 9 32 67 89 41 Regions Visited 4 Branch Regions 3 Pre-discovered Areas . | . . . . . Known Exits Taken . | . . . . . Unknown Exits Taken 4 | 1 1 1 1 . Scrap Searched 1 | . . 1 . . Spaces Dug . | . . . . . Terrain Destroyed 9 | . . 4 . 5 Melee . | . . . . . Projectile . | . . . . . AOE 9 | . . 4 . 5 Actions | -11 -10 -10 -10 -9 --------- Run | Scr Mat Min Exi Min Total 1489 | 140 202 283 646 218 Wait 6 | 2 3 1 . . Move 1352 | 108 148 262 646 188 Hop . | . . . . . Pick Up 38 | 13 19 2 . 4 Fast Attach 3 | . . 2 . 1 Attach 14 | 7 1 1 . 5 Detach . | . . . . . Swap 4 | . 2 1 . 1 Drop 21 | . 6 3 . 12 Fire 51 | 10 23 11 . 7 Melee . | . . . . . Ram . | . . . . . Kick . | . . . . . Crush . | . . . . . Escape Stasis . | . . . . . Rewire . | . . . . . Trap . | . . . . . Miscellaneous . | . . . . . Route ------- -11/Scrapyard -10/Materials -10/Mines (discovered 3 exits: [*Mat x2] / *Exi) -10/Exiles (discovered 2 exits: [*Min x2]) -9/Mines History --------- Turn | Location | Event 20 | -11/Scrapyard | Discovered new exit (range 14) 181 | -11/Scrapyard | Entered Materials 313 | -10/Materials | Build established: Mutant 404 | -10/Materials | Discovered new exit (range 6) 558 | -10/Materials | Entered Mines 701 | -10/Mines | Build established: Hauler-Mutant 765 | -10/Mines | Learned Materials security intel 931 | -10/Mines | Discovered new exit (range 12) 952 | -10/Mines | Deemed a non-threat by the Exiles lab entrance 952 | -10/Mines | Discovered new exit (range 5) 1070 | -10/Mines | Learned location of 1 exit from Materials 1078 | -10/Mines | Discovered new exit (range 6) 1152 | -10/Mines | Entered Exiles 1152 | -10/Exiles | Found Exiles lab abandoned 1652 | -10/Exiles | Discovered new exit (range 14) 2242 | -10/Exiles | Discovered new exit (range 14) 2509 | -10/Exiles | Entered Mines 2541 | -9/Mines | Met a Derelict bent on vengeance 2705 | -9/Mines | Joined a pair of Derelicts in attacking an 0b10 outpost 2889 | -9/Mines | Assembled infested the area 2894 | -9/Mines | Assisted by a Guerilla fighting off Assembled 2917 | -9/Mines | Core integrity fell below 50% 2921 | -9/Mines | Core integrity fell below 20% 2924 | -9/Mines | Destroyed by D-53 Grenadier with Mini Grenade Launcher Last Messages --------------- 02905_ as-75846 destroyed. 02905_ as-32387 destroyed. 02907_ U-05 Engineer builds a Wall. 02907_ as-60273 destroyed. 02907_ as-14326 destroyed. 02907_ as-13988 destroyed. 02907_ as-61357 destroyed. 02909_ The unstable cave ceiling collapses. 02910_ as-19959 destroyed. 02910_ as-28939 destroyed. 02912_ Lgt. Nuclear Core destroyed. 02912_ Beamcaster destroyed. 02914_ The unstable cave ceiling collapses. 02917_ Destroyed Shock Absorption System. 02918_ Grenade Launcher destroyed. 02920_ U-05 Engineer lays Concrete. 02922_ The unstable cave ceiling collapses. 02922_ Spread Laser destroyed. 02922_ U-05 Engineer builds a Wall. 02924_ The unstable cave ceiling collapses. Map ----- +----------------------------------------------------+ | ????## ###?## ##?????????# #?? | | ##### ### ##?????????## #?? | | # #?????????## #?? | | ## #?????????# ##?? | | #### #????????# ##??? | | ##??## ##????????# #???? | | ##????### ##?????????# ##???? | | ##???????### ##??????????# #????? | | #??????????### #???????????## ##????? | | #????????????# #????????????##??????? | | ##????????????# #?????????####???????? | | #?????????????# #??###### ##??????? | | ??????????????# #### #??????? | | ??????????????# ##????? | | ??????????????###### ### ##???? | | ???????????????????# "#??????? #???? | | ??????????????????## %#??????? #???? | | ???????????????#### #####?? ##??? | | ??????????###### # ##? ##?? | | ??????????# d # ??? | | ??????????# # d # ????? | | ?????????? # ??????? | | ????????? % #???????? | | ???????? #???????? | | ??????? # #???????? | | ???????? ! @ #???????? | | ???????? ### #???????? | | ????????## ## #???# ##???????? | | ???????????????????# #????????? | | ???????????????????# ????????? | | ???????????????????## ## ???????? | | ????????????????????###### ??????? | | ??????????????????????????# ?????? | | ???????????????????????????# ????? | | ????????????????????????????######???? | | ?????????????????????????????????????? | | ?????????????????????????????????????? | | ?????????????????????????????????????? | | ?????????????????????????????????????? | | ?????????????????????????????????????? | | ?????????????????????????????????????? | | ?????????????????????????????????????? | | ?????????????????????????????????????? | | ?????????????????????????????????????? | | ?????????????????????????????????????? | | ?????????????????????????????????????? | | ?????????????????????????????????????? | | ?????????????????????????????????????? | | ?????????????????????????????????????? | | ?????????????????????????????????????? | +----------------------------------------------------+ Best States ------------- Heat Dissipation 39 Energy Generation 14 Energy Capacity 250 Matter Stores 300 Matter Capacity 300 Sight Range 16 Terrain Scan Density 10 Evasion (%) 40 Item Schematics ----------------- None Robot Schematics ------------------ None Fabricated ------------ Nothing Alien Tech Used ----------------- None Achievements -------------- None Challenges ------------ None Game ------ Seed IntegrationMatterCannon Manual? 0 Play Time 00:22:43 Cumulative 61.1 hours Start 2020.08.18 @ 06:54:22 End 2020.08.18 @ 07:25:08 Sessions 1 Manual Loads 0 Difficulty Rogue Special Mode None Game No. 46 Rogue 46 Adventurer 0 Explorer 0 Win Type - Total 0 Types 0/0/0/0/0/0/0 Lore% 18 Gallery% 35 Achievement% 24 Wizard Run 0 Options --------- ASCII 0 Keyboard 0 Movement Mouse Keybinds 0 Fullscreen 0 Font 16/SmallcapsGlow Map View 76x50 Tactical HUD 1 Map Filters NONE Filters NONE Steam 1 RUN: 368d220f-3648-4cb7-be09-c5ce3f02fb91